[Event "December 5 Early 2023"]
[Site "https://www.chess.com"]
[Date "2023.12.05"]
[Round "11"]
[White "Henriquez Villagra, Cristobal"]
[Black "Bortnyk, Olexandr"]
[Result "0-1"]
[Board "4"]
[TimeControl "180+1"]
[WhiteFideId "3409350"]
[BlackFideId "14120828"]
[WhiteElo "3001"]
[BlackElo "3077"]
[WhiteTeam "CHI"]
[BlackTeam "UKR"]
[WhiteClock "0:00:18"]
[BlackClock "0:00:36"]

1. d4 {[%clk 0:02:59]}  d6 {[%clk 0:02:58]} 2. e4 {[%clk 0:02:58]}  Nf6 {[%clk 0:02:59]} 3. Nc3 {[%clk 0:02:59]}  Nbd7 {[%clk 0:03:00]} 4. f4 {[%clk 0:02:55]}  e5 {[%clk 0:03:00]} 5. Nf3 {[%clk 0:02:54]}  exd4 {[%clk 0:03:00]} 6. Nxd4 {[%clk 0:02:55]}  Nc5 {[%clk 0:02:58]} 7. Bd3 {[%clk 0:02:48]}  c6 {[%clk 0:02:59]} 8. h3 {[%clk 0:02:40]}  Qb6 {[%clk 0:02:53]} 9. Nb3 {[%clk 0:02:35]}  Be7 {[%clk 0:02:47]} 10. Nxc5 {[%clk 0:02:31]}  Qxc5 {[%clk 0:02:47]} 11. Qf3 {[%clk 0:02:30]}  d5 {[%clk 0:02:32]} 12. e5 {[%clk 0:02:25]}  Ne4 {[%clk 0:02:21]} 13. Nxe4 {[%clk 0:01:57]}  dxe4 {[%clk 0:02:21]} 14. Bxe4 {[%clk 0:01:58]}  Bh4+ {[%clk 0:02:20]} 15. Kf1 {[%clk 0:01:56]}  Be6 {[%clk 0:02:17]} 16. g3 {[%clk 0:01:54]}  Be7 {[%clk 0:02:06]} 17. Kg2 {[%clk 0:01:53]}  Rd8 {[%clk 0:01:51]} 18. Be3 {[%clk 0:01:51]}  Qb4 {[%clk 0:01:48]} 19. b3 {[%clk 0:01:51]}  O-O {[%clk 0:01:42]} 20. Rhd1 {[%clk 0:01:45]}  f5 {[%clk 0:01:41]} 21. exf6 {[%clk 0:01:39]}  Bxf6 {[%clk 0:01:41]} 22. Rab1 {[%clk 0:01:11]}  Rde8 {[%clk 0:01:27]} 23. c4 {[%clk 0:01:08]}  Qa5 {[%clk 0:01:05]} 24. Rd2 {[%clk 0:00:49]}  Rf7 {[%clk 0:01:04]} 25. Rbd1 {[%clk 0:00:44]}  Rfe7 {[%clk 0:01:04]} 26. Bb1 {[%clk 0:00:34]}  Bxh3+ {[%clk 0:01:01]} 27. Kxh3 {[%clk 0:00:34]}  Rxe3 {[%clk 0:01:02]} 28. Qg4 {[%clk 0:00:31]}  h5 {[%clk 0:00:43]} 29. Qg6 {[%clk 0:00:27]}  h4 {[%clk 0:00:42]} 30. Qh7+ {[%clk 0:00:27]}  Kf8 {[%clk 0:00:42]} 31. Rd7 {[%clk 0:00:20]}  Rxg3+ {[%clk 0:00:40]} 32. Kh2 {[%clk 0:00:21]}  Re2+ {[%clk 0:00:39]} 33. Kh1 {[%clk 0:00:18]}  Rh3+ {[%clk 0:00:39]} 34. Kg1 {[%clk 0:00:19]}  Qc5+ {[%clk 0:00:37]} 35. R1d4 {[%clk 0:00:19]}  Bxd4+ {[%clk 0:00:36]} 36. Kf1 {[%clk 0:00:18]}  Rf2+ {[%clk 0:00:36]} 0-1

[Event "December 5 Early 2023"]
[Site "https://www.chess.com"]
[Date "2023.12.05"]
[Round "11"]
[White "Navara, David"]
[Black "Zemlyanskii, Ivan"]
[Result "1-0"]
[Board "6"]
[TimeControl "180+1"]
[WhiteFideId "309095"]
[BlackFideId "24249971"]
[WhiteElo "2997"]
[BlackElo "3025"]
[WhiteTeam "CZE"]
[BlackTeam "RUS"]
[WhiteClock "0:01:15"]
[BlackClock "0:00:00"]

1. d4 {[%clk 0:03:00]}  d5 {[%clk 0:02:59]} 2. c4 {[%clk 0:03:01]}  e6 {[%clk 0:02:59]} 3. Nc3 {[%clk 0:03:01]}  c6 {[%clk 0:02:59]} 4. e3 {[%clk 0:03:01]}  Nf6 {[%clk 0:02:59]} 5. Nf3 {[%clk 0:03:01]}  Nbd7 {[%clk 0:02:59]} 6. Qc2 {[%clk 0:03:02]}  Bd6 {[%clk 0:02:59]} 7. b3 {[%clk 0:03:02]}  O-O {[%clk 0:02:58]} 8. Be2 {[%clk 0:03:02]}  b6 {[%clk 0:02:58]} 9. O-O {[%clk 0:03:02]}  Bb7 {[%clk 0:02:59]} 10. Bb2 {[%clk 0:03:02]}  Qe7 {[%clk 0:02:59]} 11. Rad1 {[%clk 0:03:02]}  Rfe8 {[%clk 0:02:55]} 12. Rfe1 {[%clk 0:03:01]}  Rad8 {[%clk 0:02:33]} 13. Bf1 {[%clk 0:03:01]}  Nf8 {[%clk 0:02:10]} 14. e4 {[%clk 0:02:49]}  dxe4 {[%clk 0:02:10]} 15. Nxe4 {[%clk 0:02:50]}  Nxe4 {[%clk 0:02:11]} 16. Qxe4 {[%clk 0:02:43]}  Ng6 {[%clk 0:01:55]} 17. Qg4 {[%clk 0:02:34]}  Qf6 {[%clk 0:01:34]} 18. Ba1 {[%clk 0:02:13]}  Qf4 {[%clk 0:01:33]} 19. Qxf4 {[%clk 0:02:13]}  Nxf4 {[%clk 0:01:34]} 20. g3 {[%clk 0:02:09]}  c5 {[%clk 0:01:30]} 21. Ne5 {[%clk 0:02:00]}  Ng6 {[%clk 0:01:20]} 22. Nxg6 {[%clk 0:01:56]}  hxg6 {[%clk 0:01:20]} 23. Bg2 {[%clk 0:01:55]}  Bxg2 {[%clk 0:01:12]} 24. Kxg2 {[%clk 0:01:56]}  cxd4 {[%clk 0:01:09]} 25. Bxd4 {[%clk 0:01:57]}  Bb4 {[%clk 0:01:07]} 26. Rf1 {[%clk 0:01:58]}  Rd7 {[%clk 0:01:04]} 27. Be3 {[%clk 0:01:58]}  Red8 {[%clk 0:01:03]} 28. Rxd7 {[%clk 0:01:58]}  Rxd7 {[%clk 0:01:04]} 29. Rc1 {[%clk 0:01:56]}  f6 {[%clk 0:00:55]} 30. c5 {[%clk 0:01:53]}  bxc5 {[%clk 0:00:35]} 31. Bxc5 {[%clk 0:01:54]}  Bxc5 {[%clk 0:00:35]} 32. Rxc5 {[%clk 0:01:55]}  e5 {[%clk 0:00:34]} 33. h4 {[%clk 0:01:53]}  Kf7 {[%clk 0:00:33]} 34. Kf3 {[%clk 0:01:48]}  Ke6 {[%clk 0:00:33]} 35. Ra5 {[%clk 0:01:49]}  Rc7 {[%clk 0:00:29]} 36. b4 {[%clk 0:01:44]}  f5 {[%clk 0:00:25]} 37. Ra6+ {[%clk 0:01:43]}  Kf7 {[%clk 0:00:24]} 38. b5 {[%clk 0:01:43]}  e4+ {[%clk 0:00:18]} 39. Kf4 {[%clk 0:01:38]}  Rd7 {[%clk 0:00:10]} 40. a4 {[%clk 0:01:33]}  Rd3 {[%clk 0:00:03]} 41. Rxa7+ {[%clk 0:01:31]}  Ke6 {[%clk 0:00:02]} 42. Ra6+ {[%clk 0:01:32]}  Kd5 {[%clk 0:00:03]} 43. Rxg6 {[%clk 0:01:22]}  Rf3+ {[%clk 0:00:04]} 44. Kg5 {[%clk 0:01:23]}  Rxf2 {[%clk 0:00:04]} 45. Rxg7 {[%clk 0:01:23]}  e3 {[%clk 0:00:03]} 46. Re7 {[%clk 0:01:23]}  Kd4 {[%clk 0:00:04]} 47. b6 {[%clk 0:01:19]}  Rb2 {[%clk 0:00:04]} 48. b7 {[%clk 0:01:19]}  Kd3 {[%clk 0:00:03]} 49. a5 {[%clk 0:01:18]}  f4 {[%clk 0:00:02]} 50. Kxf4 {[%clk 0:01:16]}  e2 {[%clk 0:00:00]} 51. a6 {[%clk 0:01:15]} 1-0

[Event "December 5 Early 2023"]
[Site "https://www.chess.com"]
[Date "2023.12.05"]
[Round "11"]
[White "Klekowski, Maciej"]
[Black "Xiong, Jeffery"]
[Result "1-0"]
[Board "7"]
[TimeControl "180+1"]
[WhiteFideId "1132717"]
[BlackFideId "2047640"]
[WhiteElo "2867"]
[BlackElo "3011"]
[WhiteTeam "POL"]
[BlackTeam "USA"]
[WhiteClock "0:00:37"]
[BlackClock "0:01:25"]

1. c4 {[%clk 0:03:00]}  c5 {[%clk 0:02:58]} 2. Nc3 {[%clk 0:03:00]}  g6 {[%clk 0:02:58]} 3. g3 {[%clk 0:02:59]}  Bg7 {[%clk 0:02:58]} 4. Bg2 {[%clk 0:03:00]}  Nc6 {[%clk 0:02:59]} 5. e3 {[%clk 0:03:00]}  Bxc3 {[%clk 0:02:57]} 6. bxc3 {[%clk 0:02:59]}  f5 {[%clk 0:02:58]} 7. g4 {[%clk 0:02:51]}  d6 {[%clk 0:02:57]} 8. gxf5 {[%clk 0:02:49]}  Bxf5 {[%clk 0:02:58]} 9. d3 {[%clk 0:02:49]}  Nf6 {[%clk 0:02:58]} 10. e4 {[%clk 0:02:49]}  Bd7 {[%clk 0:02:58]} 11. Ne2 {[%clk 0:02:44]}  a6 {[%clk 0:02:58]} 12. a4 {[%clk 0:02:44]}  Rb8 {[%clk 0:02:58]} 13. h3 {[%clk 0:02:41]}  b5 {[%clk 0:02:58]} 14. axb5 {[%clk 0:02:41]}  axb5 {[%clk 0:02:58]} 15. cxb5 {[%clk 0:02:42]}  Rxb5 {[%clk 0:02:59]} 16. O-O {[%clk 0:02:40]}  O-O {[%clk 0:02:59]} 17. d4 {[%clk 0:02:35]}  cxd4 {[%clk 0:02:59]} 18. cxd4 {[%clk 0:02:35]}  Rh5 {[%clk 0:02:58]} 19. Nf4 {[%clk 0:02:36]}  Rh4 {[%clk 0:02:58]} 20. e5 {[%clk 0:02:12]}  dxe5 {[%clk 0:02:55]} 21. dxe5 {[%clk 0:02:13]}  Nxe5 {[%clk 0:02:53]} 22. Ra8 {[%clk 0:02:10]}  Qc7 {[%clk 0:02:29]} 23. Qb3+ {[%clk 0:01:25]}  Nf7 {[%clk 0:02:29]} 24. Ne6 {[%clk 0:00:54]}  Bxe6 {[%clk 0:02:28]} 25. Rxf8+ {[%clk 0:00:53]}  Kxf8 {[%clk 0:02:29]} 26. Qxe6 {[%clk 0:00:54]}  h6 {[%clk 0:02:24]} 27. Ba3 {[%clk 0:00:45]}  Qe5 {[%clk 0:01:30]} 28. Bxe7+ {[%clk 0:00:37]}  Kg7 {[%clk 0:01:30]} 29. Re1 {[%clk 0:00:36]}  Qxe6 {[%clk 0:01:25]} 30. Rxe6 {[%clk 0:00:37]}  Nh5 {[%clk 0:01:25]} 31. Bxh4 {[%clk 0:00:37]} 1-0

[Event "December 5 Early 2023"]
[Site "https://www.chess.com"]
[Date "2023.12.05"]
[Round "11"]
[White "Grigoriants, Sergey"]
[Black "Nakamura, Hikaru"]
[Result "0-1"]
[Board "8"]
[TimeControl "180+1"]
[WhiteFideId "4130804"]
[BlackFideId "2016192"]
[WhiteElo "2943"]
[BlackElo "3233"]
[WhiteTeam "HUN"]
[BlackTeam "USA"]
[WhiteClock "0:00:08"]
[BlackClock "0:00:49"]

1. d4 {[%clk 0:02:58]}  g6 {[%clk 0:02:59]} 2. e4 {[%clk 0:02:57]}  Bg7 {[%clk 0:03:00]} 3. Nc3 {[%clk 0:02:56]}  a6 {[%clk 0:03:00]} 4. Nf3 {[%clk 0:02:54]}  d6 {[%clk 0:02:59]} 5. a4 {[%clk 0:02:53]}  b6 {[%clk 0:02:50]} 6. Bd3 {[%clk 0:02:49]}  Bb7 {[%clk 0:02:49]} 7. Ne2 {[%clk 0:02:49]}  Nd7 {[%clk 0:02:49]} 8. Ng3 {[%clk 0:02:49]}  e5 {[%clk 0:02:47]} 9. c3 {[%clk 0:02:48]}  Ngf6 {[%clk 0:02:45]} 10. O-O {[%clk 0:02:47]}  O-O {[%clk 0:02:45]} 11. Re1 {[%clk 0:02:48]}  Re8 {[%clk 0:02:45]} 12. h3 {[%clk 0:02:43]}  exd4 {[%clk 0:02:44]} 13. cxd4 {[%clk 0:02:42]}  c5 {[%clk 0:02:44]} 14. d5 {[%clk 0:02:37]}  Qc7 {[%clk 0:02:42]} 15. Bf4 {[%clk 0:02:31]}  h5 {[%clk 0:02:23]} 16. Qd2 {[%clk 0:02:26]}  c4 {[%clk 0:02:18]} 17. Bc2 {[%clk 0:02:13]}  Rac8 {[%clk 0:02:03]} 18. Qb4 {[%clk 0:02:11]}  Bf8 {[%clk 0:01:56]} 19. Rac1 {[%clk 0:02:04]}  Ne5 {[%clk 0:01:54]} 20. Nd4 {[%clk 0:01:57]}  Nfd7 {[%clk 0:01:46]} 21. Qd2 {[%clk 0:01:18]}  Nc5 {[%clk 0:01:43]} 22. Bh6 {[%clk 0:01:17]}  Qe7 {[%clk 0:01:26]} 23. Bxf8 {[%clk 0:00:48]}  Qxf8 {[%clk 0:01:24]} 24. Re3 {[%clk 0:00:41]}  h4 {[%clk 0:01:13]} 25. Nge2 {[%clk 0:00:35]}  Ned3 {[%clk 0:01:04]} 26. Bxd3 {[%clk 0:00:31]}  cxd3 {[%clk 0:01:05]} 27. f3 {[%clk 0:00:25]}  dxe2 {[%clk 0:01:04]} 28. Rxe2 {[%clk 0:00:17]}  Qg7 {[%clk 0:01:02]} 29. b4 {[%clk 0:00:08]}  Nd3 {[%clk 0:00:49]} 0-1

[Event "December 5 Early 2023"]
[Site "https://www.chess.com"]
[Date "2023.12.05"]
[Round "11"]
[White "Sarana, Alexey"]
[Black "Dragnev, Valentin"]
[Result "1-0"]
[Board "12"]
[TimeControl "180+1"]
[WhiteFideId "24133795"]
[BlackFideId "1634852"]
[WhiteElo "2998"]
[BlackElo "2817"]
[WhiteTeam "SRB"]
[BlackTeam "AUT"]
[WhiteClock "0:00:57"]
[BlackClock "0:00:00"]

1. d4 {[%clk 0:02:59]}  Nf6 {[%clk 0:03:00]} 2. c4 {[%clk 0:02:47]}  e6 {[%clk 0:03:00]} 3. Nc3 {[%clk 0:02:38]}  d5 {[%clk 0:02:50]} 4. cxd5 {[%clk 0:02:37]}  exd5 {[%clk 0:02:50]} 5. Bg5 {[%clk 0:02:37]}  c6 {[%clk 0:02:51]} 6. e3 {[%clk 0:02:38]}  Bf5 {[%clk 0:02:51]} 7. Qf3 {[%clk 0:02:37]}  Bg6 {[%clk 0:02:52]} 8. Bxf6 {[%clk 0:02:38]}  Qxf6 {[%clk 0:02:52]} 9. Qxf6 {[%clk 0:02:38]}  gxf6 {[%clk 0:02:53]} 10. h4 {[%clk 0:02:39]}  Nd7 {[%clk 0:02:49]} 11. Nh3 {[%clk 0:02:37]}  Bd6 {[%clk 0:02:48]} 12. g3 {[%clk 0:02:35]}  a5 {[%clk 0:02:45]} 13. Nf4 {[%clk 0:02:35]}  a4 {[%clk 0:02:36]} 14. Bh3 {[%clk 0:02:34]}  a3 {[%clk 0:02:32]} 15. b3 {[%clk 0:02:34]}  Bxf4 {[%clk 0:01:59]} 16. gxf4 {[%clk 0:02:33]}  Rg8 {[%clk 0:01:55]} 17. h5 {[%clk 0:02:18]}  Bd3 {[%clk 0:01:39]} 18. Kd2 {[%clk 0:02:18]}  Ba6 {[%clk 0:01:38]} 19. Na4 {[%clk 0:01:59]}  Nf8 {[%clk 0:00:46]} 20. Rag1 {[%clk 0:01:58]}  Rh8 {[%clk 0:00:47]} 21. Rg7 {[%clk 0:01:56]}  Bb5 {[%clk 0:00:37]} 22. Nb6 {[%clk 0:01:47]}  Rd8 {[%clk 0:00:30]} 23. h6 {[%clk 0:01:41]}  Ke7 {[%clk 0:00:20]} 24. Nc8+ {[%clk 0:01:36]}  Ke8 {[%clk 0:00:21]} 25. Bf5 {[%clk 0:01:36]}  Ba6 {[%clk 0:00:17]} 26. Nb6 {[%clk 0:01:32]}  Ke7 {[%clk 0:00:16]} 27. Rhg1 {[%clk 0:01:32]}  Ne6 {[%clk 0:00:14]} 28. Bxe6 {[%clk 0:01:28]}  Kxe6 {[%clk 0:00:15]} 29. f5+ {[%clk 0:01:28]}  Ke7 {[%clk 0:00:14]} 30. Na4 {[%clk 0:01:26]}  Ra8 {[%clk 0:00:11]} 31. Nc5 {[%clk 0:01:21]}  b6 {[%clk 0:00:11]} 32. Na4 {[%clk 0:01:21]}  Rab8 {[%clk 0:00:10]} 33. f3 {[%clk 0:01:17]}  Rb7 {[%clk 0:00:05]} 34. e4 {[%clk 0:01:17]}  dxe4 {[%clk 0:00:05]} 35. fxe4 {[%clk 0:01:18]}  Bb5 {[%clk 0:00:04]} 36. Nc3 {[%clk 0:01:18]}  Rd7 {[%clk 0:00:05]} 37. Ke3 {[%clk 0:01:16]}  Ba6 {[%clk 0:00:05]} 38. Na4 {[%clk 0:01:12]}  Rhd8 {[%clk 0:00:04]} 39. Rd1 {[%clk 0:01:12]}  Bb5 {[%clk 0:00:04]} 40. Nc3 {[%clk 0:00:59]}  Ba6 {[%clk 0:00:04]} 41. Rxh7 {[%clk 0:00:59]}  c5 {[%clk 0:00:05]} 42. Nd5+ {[%clk 0:00:59]}  Rxd5 {[%clk 0:00:04]} 43. exd5 {[%clk 0:00:59]}  Rxd5 {[%clk 0:00:04]} 44. Rg7 {[%clk 0:00:57]}  Rxf5 {[%clk 0:00:04]} 45. h7 {[%clk 0:00:57]}  Rh5 {[%clk 0:00:04]} 46. dxc5 {[%clk 0:00:58]}  Rh3+ {[%clk 0:00:03]} 47. Kf4 {[%clk 0:00:57]}  bxc5 {[%clk 0:00:04]} 48. Re1+ {[%clk 0:00:57]}  Kd6 {[%clk 0:00:03]} 49. Re8 {[%clk 0:00:57]}  Bd3 {[%clk 0:00:01]} 50. h8=Q {[%clk 0:00:56]}  Rxh8 {[%clk 0:00:02]} 51. Rxh8 {[%clk 0:00:57]}  Bb1 {[%clk 0:00:00]} 52. Rh2 {[%clk 0:00:57]} 1-0

[Event "December 5 Early 2023"]
[Site "https://www.chess.com"]
[Date "2023.12.05"]
[Round "11"]
[White "Bluebaum, Matthias"]
[Black "Javakhadze, Zurab"]
[Result "1-0"]
[Board "14"]
[TimeControl "180+1"]
[WhiteFideId "24651516"]
[BlackFideId "13603647"]
[WhiteElo "3022"]
[BlackElo "2839"]
[WhiteTeam "GER"]
[BlackTeam "GEO"]
[WhiteClock "0:01:01"]
[BlackClock "0:00:00"]

1. d4 {[%clk 0:03:00]}  d5 {[%clk 0:02:57]} 2. c4 {[%clk 0:03:01]}  e6 {[%clk 0:02:57]} 3. Nc3 {[%clk 0:03:01]}  Nf6 {[%clk 0:02:58]} 4. cxd5 {[%clk 0:03:02]}  exd5 {[%clk 0:02:58]} 5. Bg5 {[%clk 0:03:03]}  c6 {[%clk 0:02:59]} 6. e3 {[%clk 0:03:03]}  Bd6 {[%clk 0:02:57]} 7. Bd3 {[%clk 0:03:04]}  O-O {[%clk 0:02:57]} 8. Nf3 {[%clk 0:03:04]}  Nbd7 {[%clk 0:02:56]} 9. Qc2 {[%clk 0:03:04]}  h6 {[%clk 0:02:56]} 10. Bh4 {[%clk 0:03:05]}  Re8 {[%clk 0:02:56]} 11. Bg3 {[%clk 0:03:05]}  Nf8 {[%clk 0:02:56]} 12. Ne5 {[%clk 0:03:05]}  a6 {[%clk 0:02:47]} 13. f4 {[%clk 0:03:05]}  c5 {[%clk 0:02:47]} 14. O-O {[%clk 0:03:02]}  b5 {[%clk 0:02:44]} 15. Bh4 {[%clk 0:02:48]}  Be7 {[%clk 0:02:26]} 16. Nc6 {[%clk 0:02:45]}  Qd6 {[%clk 0:02:20]} 17. Nxe7+ {[%clk 0:02:45]}  Rxe7 {[%clk 0:02:21]} 18. Bxf6 {[%clk 0:02:43]}  gxf6 {[%clk 0:02:20]} 19. dxc5 {[%clk 0:02:41]}  Qxc5 {[%clk 0:02:19]} 20. Kh1 {[%clk 0:02:36]}  Rxe3 {[%clk 0:02:14]} 21. Qf2 {[%clk 0:02:33]}  d4 {[%clk 0:02:03]} 22. Ne4 {[%clk 0:02:34]}  Qe7 {[%clk 0:02:04]} 23. Rad1 {[%clk 0:02:27]}  Bf5 {[%clk 0:01:34]} 24. Nc3 {[%clk 0:02:00]}  Rxd3 {[%clk 0:01:03]} 25. Nd5 {[%clk 0:01:48]}  Qd8 {[%clk 0:00:43]} 26. Rxd3 {[%clk 0:01:40]}  Bxd3 {[%clk 0:00:44]} 27. Qg3+ {[%clk 0:01:41]}  Bg6 {[%clk 0:00:44]} 28. Nb4 {[%clk 0:01:41]}  Qd6 {[%clk 0:00:37]} 29. a3 {[%clk 0:01:40]}  Re8 {[%clk 0:00:34]} 30. Rd1 {[%clk 0:01:40]}  Re3 {[%clk 0:00:28]} 31. Qf2 {[%clk 0:01:37]}  Qe6 {[%clk 0:00:25]} 32. h3 {[%clk 0:01:34]}  d3 {[%clk 0:00:22]} 33. f5 {[%clk 0:01:28]}  Bxf5 {[%clk 0:00:21]} 34. Nd5 {[%clk 0:01:29]}  Rxh3+ {[%clk 0:00:13]} 35. gxh3 {[%clk 0:01:27]}  Qxd5+ {[%clk 0:00:13]} 36. Kh2 {[%clk 0:01:28]}  Qe5+ {[%clk 0:00:13]} 37. Kg1 {[%clk 0:01:25]}  Bg6 {[%clk 0:00:14]} 38. Re1 {[%clk 0:01:24]}  Qg5+ {[%clk 0:00:13]} 39. Kh2 {[%clk 0:01:24]}  Ne6 {[%clk 0:00:13]} 40. h4 {[%clk 0:01:22]}  Qf4+ {[%clk 0:00:13]} 41. Qxf4 {[%clk 0:01:22]}  Nxf4 {[%clk 0:00:14]} 42. Kg3 {[%clk 0:01:23]}  Nd5 {[%clk 0:00:10]} 43. Kf2 {[%clk 0:01:22]}  h5 {[%clk 0:00:07]} 44. Re8+ {[%clk 0:01:22]}  Kg7 {[%clk 0:00:07]} 45. Ke1 {[%clk 0:01:23]}  Nf4 {[%clk 0:00:07]} 46. Ra8 {[%clk 0:01:23]}  Ng2+ {[%clk 0:00:06]} 47. Kd2 {[%clk 0:01:24]}  Nxh4 {[%clk 0:00:06]} 48. Rxa6 {[%clk 0:01:25]}  Nf3+ {[%clk 0:00:06]} 49. Ke3 {[%clk 0:01:25]}  Ne5 {[%clk 0:00:06]} 50. b3 {[%clk 0:01:23]}  h4 {[%clk 0:00:06]} 51. Rd6 {[%clk 0:01:19]}  h3 {[%clk 0:00:05]} 52. Kf2 {[%clk 0:01:19]}  Be4 {[%clk 0:00:02]} 53. Kg3 {[%clk 0:01:20]}  Bg2 {[%clk 0:00:02]} 54. a4 {[%clk 0:01:20]}  bxa4 {[%clk 0:00:02]} 55. bxa4 {[%clk 0:01:21]}  Bf1 {[%clk 0:00:01]} 56. a5 {[%clk 0:01:20]}  Nc4 {[%clk 0:00:02]} 57. Rd5 {[%clk 0:01:19]}  d2 {[%clk 0:00:01]} 58. a6 {[%clk 0:01:19]}  Be2 {[%clk 0:00:02]} 59. a7 {[%clk 0:01:18]}  Nb6 {[%clk 0:00:02]} 60. Rxd2 {[%clk 0:01:18]}  Bf1 {[%clk 0:00:03]} 61. Rd6 {[%clk 0:01:18]}  Na8 {[%clk 0:00:03]} 62. Rd4 {[%clk 0:01:15]}  Bg2 {[%clk 0:00:03]} 63. Rg4+ {[%clk 0:01:16]}  Kf8 {[%clk 0:00:03]} 64. Rb4 {[%clk 0:01:17]}  Ke7 {[%clk 0:00:03]} 65. Rh4 {[%clk 0:01:14]}  f5 {[%clk 0:00:03]} 66. Kf4 {[%clk 0:01:15]}  Ke6 {[%clk 0:00:03]} 67. Rh6+ {[%clk 0:01:15]}  f6 {[%clk 0:00:03]} 68. Rh8 {[%clk 0:01:15]}  Nc7 {[%clk 0:00:03]} 69. Kg3 {[%clk 0:01:09]}  Ke5 {[%clk 0:00:02]} 70. Rc8 {[%clk 0:01:06]}  f4+ {[%clk 0:00:03]} 71. Kf2 {[%clk 0:01:05]}  Na8 {[%clk 0:00:03]} 72. Rh8 {[%clk 0:01:04]}  Kf5 {[%clk 0:00:03]} 73. Rh5+ {[%clk 0:01:04]}  Kg4 {[%clk 0:00:03]} 74. Rh8 {[%clk 0:01:05]}  Bd5 {[%clk 0:00:00]} 75. Rh7 {[%clk 0:01:01]} 1-0